bitfinex-derivatives/quotes_ETHF0:USTF0_20251203
["timestamp","ask_amount","ask_price","bid_price","bid_amount"]
[1764775328268,3.2078,3058.8,3058.3,0.00397427]
[1764775328570,0.00490268,3058.9,3058.7,0.16342]
[1764775328769,0.00490268,3058.9,3058.4,4.33573453]
[1764775328963,0.00490268,3058.9,3058.3,0.00397427]
[1764775329165,0.00490268,3058.9,3058.3,3.21177427]
[1764775329971,0.00490268,3058.9,3058.7,3.2078]
[1764775330165,0.00490268,3058.9,3058.3,3.21177427]
[1764775330674,0.00490268,3058.9,3058.3,0.00397427]
[1764775330874,3.2078,3058.7,3058.3,0.00397427]
[1764775331077,1.7346,3058.4,3058.3,0.00397427]
[1764775331372,6.00933449,3058.7,3057.7,3.2078]
[1764775331579,0.72229536,3058.6,3058.1,3.2078]
[1764775332166,3.36040985,3058.6,3057.6,3.2078]
[1764775332474,0.72229536,3058.5,3058.0,3.2078]
[1764775332979,3.2078,3058.2,3057.6,3.21145712]
[1764775333179,3.2078,3058.8,3058.1,3.2078]
[1764775334079,3.2078,3058.8,3058.4,1.7974]
[1764775334276,3.2078,3058.8,3058.1,3.2078]
[1764775334475,3.36103776,3058.7,3058.1,3.2078]
[1764775334682,3.36103776,3058.7,3058.0,3.2078]
[1764775334683,0.72292327,3058.6,3058.0,3.2078]
[1764775334973,0.72292327,3058.6,3057.6,0.00365712]
[1764775334974,3.2078,3058.4,3057.6,3.21145712]
[1764775335179,0.72292327,3058.3,3057.6,3.21145712]
[1764775335478,0.72292327,3058.3,3057.6,5.00885712]
[1764775335665,3.2078,3058.8,3058.0,3.2078]
[1764775336181,3.2078,3058.8,3058.2,0.16344]
[1764775336476,3.2078,3058.8,3058.0,3.2078]
[1764775337378,3.2078,3058.8,3057.6,3.21145712]
[1764775337574,5.10584,3058.4,3057.6,0.00365712]
[1764775337973,0.72289739,3058.3,3057.6,0.00365712]
[1764775338374,3.37124,3058.4,3057.6,0.00365712]
[1764775338579,5.10584,3058.4,3057.6,0.00365712]
[1764775338977,3.37124,3058.4,3057.6,0.00365712]
[1764775339171,3.2078,3058.0,3057.6,0.00365712]
[1764775339382,3.21152607,3058.0,3057.6,0.00365712]
[1764775339678,1.7346,3057.6,3057.0,11.767]
[1764775339883,6.36523334,3057.4,3056.2,16.6198]
[1764775340078,0.00490268,3057.1,3056.2,16.6198]
[1764775340481,0.00490268,3057.1,3057.0,3.2078]
[1764775340675,0.00490268,3057.1,3057.0,3.2106345]
[1764775341183,3.2078,3057.9,3057.2,0.1635]
[1764775341379,3.2078,3058.4,3057.5,0.16348]
[1764775341578,3.2078,3058.4,3057.6,12.0744]
[1764775342084,3.37124,3058.4,3057.6,10.277]
[1764775342281,3.2078,3058.4,3057.6,10.277]
[1764775342482,0.00490268,3058.1,3057.6,10.277]
[1764775342676,0.00490268,3058.1,3057.6,12.0744]
[1764775342881,0.00490268,3058.1,3057.9,3.2078]
[1764775343078,3.2078,3059.2,3058.7,0.16341]
[1764775343477,3.2078,3059.2,3058.5,3.2078]
[1764775343678,3.2078,3060.0,3059.1,0.16339]
[1764775343872,3.2078,3060.0,3059.2,13.623]
[1764775344076,0.00490268,3059.9,3059.3,0.00490268]
[1764775344474,3.2078,3059.5,3059.3,0.00490268]
[1764775345980,0.00490268,3059.9,3059.3,0.00490268]
[1764775346485,0.00490268,3059.9,3059.5,3.2078]
[1764775346987,0.00490268,3059.9,3059.7,0.16336]
[1764775347287,0.00490268,3059.9,3059.8,13.78536]
[1764775347879,0.00490268,3059.9,3059.8,19.78536]
[1764775348084,3.2078,3060.8,3059.8,13.78536]
[1764775348281,3.2078,3060.8,3060.2,3.2078]
[1764775348677,3.2078,3061.2,3060.5,0.16332]
[1764775348878,3.2078,3061.2,3060.6,13.618]
[1764775349080,3.21584753,3061.2,3060.6,13.62290268]
[1764775350083,0.16329,3061.1,3060.6,0.00490268]
[1764775350289,3.2078,3060.8,3060.6,0.00490268]
[1764775352084,0.00804753,3061.2,3060.7,3.2078]
[1764775352598,0.00804753,3061.2,3060.6,3.21270268]
[1764775352889,3.21584753,3061.2,3060.6,3.21270268]
[1764775353293,3.2078,3060.8,3060.6,0.00490268]
[1764775356596,3.21584753,3061.2,3060.7,3.2078]
[1764775356798,0.00804753,3061.2,3060.8,1.2712]
[1764775356994,0.00804753,3061.2,3060.8,5.43313783]
[1764775357195,6.91002559,3062.9,3061.4,0.16327]
[1764775357196,3.2078,3062.1,3061.4,0.16327]
[1764775357391,3.2078,3062.1,3061.5,13.59]
[1764775357697,3.2078,3062.1,3061.5,16.96107]
[1764775357992,3.2078,3062.1,3061.6,0.8361]
[1764775358193,0.00387881,3062.1,3061.9,3.2078]
[1764775359106,0.00387881,3062.1,3062.0,3.2078]
[1764775359294,0.00387881,3062.1,3061.6,0.8391482]
[1764775359498,0.00387881,3062.1,3061.6,0.0030482]
[1764775360095,3.2078,3062.0,3061.6,0.0030482]
[1764775363402,3.2078,3062.0,3061.6,1.6662482]
[1764775363797,0.00387881,3062.1,3061.9,3.2078]
[1764775364401,3.2078,3063.0,3062.6,0.16321]
[1764775364600,3.2078,3063.0,3062.7,12.7932]
[1764775364800,3.2078,3063.6,3062.8,0.1632]
[1764775365002,3.2078,3063.6,3062.7,12.63]
[1764775365298,3.2078,3064.2,3063.2,1.54828]
[1764775365499,0.00490268,3063.5,3063.2,0.16318]
[1764775365901,0.00490268,3063.5,3063.1,3.2078]
[1764775366894,0.00490268,3063.5,3063.2,5.67006586]
[1764775367096,0.00490268,3063.5,3063.3,0.16317]
[1764775367405,3.2078,3064.6,3063.6,0.16315]
[1764775367604,3.2078,3064.6,3064.0,3.2078]
[1764775367902,3.2078,3064.6,3064.0,10.2958]
[1764775368207,3.21379964,3064.6,3064.0,10.29878648]
[1764775368403,0.00599964,3064.6,3064.1,4.42401179]
[1764775368905,0.00599964,3064.6,3064.1,0.16313]
[1764775369107,0.00599964,3064.6,3064.0,11.95338648]
[1764775369305,0.00599964,3064.6,3064.5,3.2078]
[1764775370203,0.00599964,3064.6,3064.2,6.4668]
[1764775371510,0.00599964,3064.6,3064.2,3.259]
[1764775371896,3.21379964,3064.6,3064.2,3.259]
[1764775372213,3.37689964,3064.6,3064.2,3.259]
[1764775372601,0.16311,3064.5,3064.2,3.259]
[1764775373520,3.21379964,3064.6,3064.2,3.259]
[1764775373704,0.00599964,3064.6,3064.2,6.4668]
[1764775374804,3.21379964,3064.6,3064.2,3.259]
[1764775375711,0.16311,3064.5,3064.2,3.259]
[1764775375917,0.16311,3064.5,3063.5,11.755]
[1764775375918,0.16314,3063.9,3063.5,11.755]
[1764775376214,3.2078,3063.6,3062.7,7.754]
[1764775376618,3.2078,3063.6,3062.9,3.2078]
[1764775377009,3.2078,3063.6,3062.9,0.00338282]
[1764775377913,3.2078,3063.2,3062.9,0.00338282]
[1764775378112,4.8662,3063.2,3062.9,0.00338282]
[1764775380117,0.16319,3063.0,3062.9,0.00338282]
[1764775380314,6.0,3063.1,3061.9,0.06671]
[1764775380519,4.8662,3063.2,3061.9,0.06671]
[1764775380520,3.2078,3062.6,3061.9,0.06671]
[1764775380914,3.2078,3062.6,3062.4,1.6632]
[1764775381216,3.2078,3063.3,3062.5,11.1608]
[1764775381419,0.00490268,3062.8,3062.5,11.1608]
[1764775383034,3.2078,3064.4,3063.2,1.6632]
[1764775383215,0.00288238,3064.6,3064.1,3.2078]
[1764775384228,0.00288238,3064.6,3064.5,3.2078]
[1764775385425,3.2078,3065.7,3064.5,13.54499571]
[1764775385621,3.2078,3065.7,3064.9,3.2078]
[1764775385818,3.2078,3065.7,3065.0,9.52308]
[1764775386421,3.21146994,3065.7,3065.1,4.4999085]
[1764775386621,0.00366994,3065.7,3065.6,1.3667]
[1764775387117,0.00366994,3065.7,3065.3,3.2078]
[1764775387520,3.2078,3066.6,3065.6,1.4683]
[1764775387715,3.2078,3066.6,3065.8,0.0048946]
[1764775387926,3.2078,3066.1,3065.8,0.0048946]
[1764775388729,3.21038076,3066.1,3065.8,0.0048946]
[1764775389030,0.00258076,3066.1,3065.8,0.0048946]
[1764775389540,3.2078,3066.9,3066.0,0.16303]
[1764775389827,3.2078,3066.9,3066.1,3.2078]
[1764775390424,3.21193263,3066.9,3066.1,3.2078]
[1764775390819,3.2078,3068.5,3067.2,1.4683]
[1764775391027,3.2078,3068.5,3067.8,3.2078]
[1764775391333,1.90484023,3069.4,3068.2,3.2078]
[1764775391334,3.2078,3069.4,3068.2,3.2078]
[1764775391522,3.2078,3069.4,3068.7,3.2078]
[1764775392025,0.00311332,3069.4,3069.3,3.2078]
[1764775393529,0.00311332,3069.4,3069.0,0.0048946]
[1764775394427,0.00311332,3069.4,3069.1,3.2078]
[1764775395029,0.00311332,3069.4,3069.2,4.30204851]
[1764775395627,0.00311332,3069.4,3069.1,3.2078]
[1764775399034,3.21091332,3069.4,3069.0,0.0048946]
[1764775399237,3.21091332,3069.4,3068.5,3.2078]
[1764775399238,0.16286,3069.3,3068.5,3.2078]
[1764775399534,3.21091332,3069.4,3068.5,3.2078]
[1764775399736,0.16285,3069.3,3068.5,3.2078]
[1764775400242,0.16285,3069.3,3068.6,0.0048946]
[1764775401235,1.5376,3068.8,3068.6,0.0048946]
[1764775401732,3.2078,3069.0,3068.6,0.0048946]
[1764775402539,1.5376,3068.8,3068.6,0.0048946]
[1764775404038,3.2078,3069.0,3068.6,0.0048946]
[1764775404545,3.21091332,3069.4,3068.6,0.0048946]
[1764775406939,0.00311332,3069.4,3068.9,3.2078]
[1764775407742,0.00311332,3069.4,3069.3,3.2078]
[1764775412254,0.00311332,3069.4,3068.9,3.2078]
[1764775414347,3.21091332,3069.4,3068.9,3.2078]
[1764775414552,5.28473929,3069.4,3068.9,3.2078]
[1764775415649,0.8986,3068.8,3068.6,9.9158946]
[1764775415854,2.80957597,3068.8,3068.6,9.9158946]
[1764775416239,2.80957597,3068.8,3068.6,0.0048946]
[1764775416444,0.16289,3068.6,3067.8,3.2078]
[1764775416645,4.0907007,3068.5,3067.8,3.2078]
[1764775416952,3.3707,3068.5,3067.8,3.2078]
[1764775417144,0.72051857,3068.4,3067.8,3.2078]
[1764775417349,0.8986,3068.8,3068.2,3.2078]
[1764775417649,3.2078,3069.0,3068.2,3.21520782]
[1764775417854,0.00311332,3069.4,3068.9,3.2078]
[1764775418151,0.00311332,3069.4,3069.2,3.2078]
[1764775418455,0.00311332,3069.4,3068.8,5.7437]
[1764775418456,0.00311332,3069.4,3069.3,3.2078]
[1764775420953,2.63792072,3069.4,3068.8,3.2078]
[1764775421152,1.22257394,3069.3,3068.8,3.2078]
[1764775421461,1.05972394,3069.2,3068.8,3.2078]
[1764775421752,1.05972394,3069.1,3068.8,3.2078]
[1764775421949,0.72383143,3069.0,3068.8,4.6775]
[1764775422145,0.00311332,3069.4,3069.0,0.16287]
[1764775422344,0.00311332,3069.4,3069.3,3.2078]
[1764775424456,3.2078,3070.5,3069.5,1.4697]
[1764775424758,3.2078,3070.9,3069.6,4.29203568]
[1764775424956,2.87067464,3071.7,3070.3,0.1628]
[1764775424957,0.72367882,3070.8,3070.3,0.1628]
[1764775425160,3.2078,3071.3,3070.7,3.2078]
[1764775425459,0.72086014,3071.2,3070.7,3.21028912]
[1764775425758,0.00828298,3071.3,3071.1,3.2078]
[1764775425950,0.7204397,3071.2,3071.1,3.2078]
[1764775426147,0.00828298,3071.3,3071.1,3.2078]
[1764775428748,1.3628,3072.3,3071.1,3.2078]
[1764775428749,3.2078,3072.3,3071.3,0.16274]
[1764775428949,3.2078,3072.3,3071.5,3.2078]
[1764775429160,3.2078,3072.3,3071.6,11.551]
[1764775429461,0.71638319,3072.2,3071.5,3.2078]
[1764775429657,3.2078,3072.3,3071.5,3.2078]
[1764775429854,0.00262956,3072.2,3071.5,3.2078]
[1764775430353,0.71727614,3072.2,3071.5,3.2078]
[1764775430958,0.00262956,3072.2,3071.5,3.2078]
[1764775432062,0.71625183,3072.2,3071.5,3.2078]
[1764775432555,3.2078,3071.9,3071.1,3.2078]
[1764775432751,1.04566013,3071.8,3071.1,3.2078]
[1764775432952,1.3628,3071.6,3071.1,3.2078]
[1764775433261,0.71353922,3071.5,3071.1,3.2078]
[1764775433457,0.87627922,3071.5,3071.1,3.2078]
[1764775433661,3.2078,3071.9,3071.1,3.2078]
[1764775433963,0.7138201,3071.8,3071.1,3.2078]
[1764775434965,0.8765401,3071.8,3071.1,3.2078]
[1764775435163,0.8765501,3071.7,3071.1,3.2078]
[1764775435362,0.7138201,3071.6,3071.1,3.2078]
[1764775435566,0.16273,3071.7,3071.1,3.2078]
[1764775436953,3.2078,3071.9,3071.1,3.2078]
[1764775437158,0.00262956,3072.2,3071.6,1.0626]
[1764775437358,3.2078,3073.2,3072.1,3.2078]
[1764775437558,0.71315905,3073.1,3072.3,4.68238614]
[1764775437853,3.2078,3073.2,3072.3,3.21268614]
[1764775438468,3.21024434,3073.2,3072.3,3.21268614]
[1764775438964,0.16266,3073.0,3072.3,3.21268614]
[1764775439161,3.2078,3072.7,3072.3,0.00488614]
[1764775439364,0.16266,3073.0,3072.3,0.00488614]
[1764775439566,0.16266,3073.0,3072.3,3.21268614]
[1764775439868,3.2078,3072.7,3072.3,0.00488614]
[1764775441064,3.21024434,3073.2,3072.5,3.2078]
[1764775441662,0.00244434,3073.2,3072.9,3.2078]
[1764775441866,0.00244434,3073.2,3072.9,3.21132909]
[1764775442666,1.3628,3072.8,3070.5,1.75095291]
[1764775442859,3.2078,3071.3,3070.5,3.2078]
[1764775443058,3.2078,3072.4,3070.9,4.6775]
[1764775443261,3.2078,3072.4,3071.7,3.2078]
[1764775443668,3.2078,3072.4,3071.7,0.00384495]
[1764775443869,3.2078,3071.9,3071.7,0.00873109]
[1764775447673,3.21268614,3072.4,3071.7,3.21653109]
[1764775447964,1.90813708,3072.2,3071.7,3.21653109]
[1764775448463,3.21268614,3072.4,3071.7,3.21653109]
[1764775449572,3.21268614,3072.4,3072.3,1.3447]
[1764775449862,0.00488614,3072.4,3072.3,1.3447]
[1764775451670,0.00488614,3072.4,3072.1,3.2078]
[1764775451865,0.00488614,3072.4,3071.7,3.21653109]
[1764775452065,0.00488614,3072.4,3072.3,1.3447]
[1764775452767,0.00488614,3072.4,3072.1,3.2078]
[1764775453165,0.00488614,3072.4,3071.7,3.37925109]
[1764775453370,0.00488614,3072.4,3072.1,3.2078]
[1764775453570,0.00488614,3072.4,3071.7,3.37925109]
[1764775453771,0.00488614,3072.4,3072.3,1.3447]
[1764775454662,0.00488614,3072.4,3072.1,3.2078]
[1764775455469,1.90813708,3072.3,3071.7,3.37925109]
[1764775456171,1.90813708,3072.3,3071.7,3.21653109]
[1764775456574,1.90813708,3071.8,3071.7,3.21653109]
[1764775456964,0.00488614,3072.4,3072.3,1.3447]
[1764775457267,0.00488614,3072.4,3071.7,0.00873109]
[1764775457668,0.00488614,3072.4,3072.3,1.3447]
[1764775458365,0.00488614,3072.4,3072.0,3.2078]
[1764775458868,0.00488614,3072.4,3072.3,1.3447]
[1764775459278,0.00488614,3072.4,3072.0,3.2078]
[1764775460974,0.00488614,3072.4,3072.3,1.3447]
[1764775461175,0.00488614,3072.4,3072.0,3.2078]
[1764775461570,2.23025397,3072.3,3071.7,0.00873109]
[1764775462068,0.00488614,3072.4,3071.7,0.00873109]
[1764775462275,0.71764472,3072.3,3071.7,0.00873109]
[1764775462464,0.71764472,3072.3,3072.2,4.3508]
[1764775462671,0.00488614,3072.4,3072.0,1.3447]
[1764775462876,0.00488614,3072.4,3071.7,0.00873109]
[1764775463294,0.00488614,3072.4,3072.3,4.3508]
[1764775463569,0.00244434,3073.2,3072.6,1.3447]
[1764775463775,0.00244434,3073.2,3072.8,0.16266]
[1764775464371,0.00244434,3073.2,3073.0,3.2078]
[1764775464563,0.00244434,3073.2,3072.8,1.91361291]
[1764775464768,0.00244434,3073.2,3072.8,0.16266]
[1764775464969,0.00244434,3073.2,3073.0,3.2078]
[1764775466780,3.2078,3073.8,3073.0,3.2078]
[1764775467579,3.21122307,3073.8,3073.0,3.2078]
[1764775469072,3.21122307,3073.8,3073.7,2.0544]
[1764775469477,3.21122307,3073.8,3073.7,4.3508]
[1764775469675,0.00342307,3073.8,3073.7,4.3508]
[1764775469883,0.19304165,3075.1,3075.0,1.3447]
[1764775470076,3.2078,3075.9,3075.1,0.16254]
[1764775470379,3.2078,3075.9,3075.4,3.2078]
[1764775470874,3.21057273,3075.9,3075.4,0.00318336]
[1764775471069,2.39276397,3075.8,3075.4,0.00318336]
[1764775471271,0.16251,3075.8,3075.4,0.00318336]
[1764775471667,3.21057273,3075.9,3075.4,0.00318336]
[1764775472271,3.21057273,3075.9,3075.4,3.21098336]
[1764775472473,3.21057273,3075.9,3075.8,1.3447]
[1764775473077,0.00277273,3075.9,3075.4,3.21098336]
[1764775473577,3.2078,3076.8,3075.8,4.4413]
[1764775473882,3.2078,3077.2,3076.5,1.2335]
[1764775474274,3.2078,3077.2,3076.6,3.2078]
[1764775474578,3.21152121,3077.2,3076.6,3.2078]
[1764775474775,0.00372121,3077.2,3077.1,3.2078]
[1764775475283,3.2078,3078.1,3077.2,1.2335]
[1764775475471,3.2078,3078.1,3077.5,3.2078]
[1764775476067,3.2078,3078.1,3077.9,1.2335]
[1764775476272,0.00347261,3078.1,3077.9,4.44457532]
[1764775477079,0.00347261,3078.1,3077.9,0.00327532]
[1764775477274,3.2078,3078.0,3077.9,0.00327532]
[1764775477479,0.00347261,3078.1,3077.9,0.00327532]
[1764775477680,0.00347261,3078.1,3077.9,1.20367532]
[1764775477881,3.2078,3078.0,3077.9,0.00327532]
[1764775478082,3.2078,3078.0,3077.4,3.2078]
[1764775478680,3.02565397,3077.9,3077.4,2.88579851]
[1764775478974,3.02565397,3077.9,3077.4,2.88939089]
[1764775479171,3.2078,3077.5,3077.4,0.00359238]
[1764775480580,0.16241,3077.8,3077.4,0.00359238]
[1764775480779,3.2078,3077.5,3077.4,0.00359238]
[1764775481672,3.2078,3077.9,3077.4,0.00359238]
[1764775481874,5.43805397,3077.9,3077.4,0.00359238]
[1764775482074,3.2078,3077.5,3077.4,0.00359238]
[1764775483182,5.43805397,3077.5,3077.4,0.00359238]
[1764775483382,11.60047397,3077.5,3076.7,3.2078]
[1764775483585,3.2078,3077.1,3076.7,3.2078]
[1764775484377,3.2078,3077.1,3076.8,0.00729941]
[1764775485184,0.16245,3076.9,3076.8,0.00729941]
[1764775486589,2.39270397,3076.9,3076.3,3.2078]
[1764775486788,3.2078,3076.7,3076.3,3.2078]
[1764775487086,3.2078,3076.7,3075.4,3.2078]
[1764775487087,0.16248,3076.4,3075.4,3.2078]
[1764775487490,3.2078,3076.1,3075.4,3.2078]
[1764775487690,3.21265069,3076.1,3075.4,3.21644832]
[1764775487891,0.00485069,3076.1,3075.4,3.21644832]
[1764775488094,3.21265069,3076.1,3075.4,3.21644832]
[1764775488683,0.00485069,3076.1,3075.4,3.21644832]
[1764775489087,3.21265069,3076.1,3075.4,3.21644832]
[1764775489291,0.00485069,3076.1,3075.4,3.21644832]
[1764775489496,0.00485069,3076.1,3076.0,3.2078]
[1764775491802,3.21265069,3076.1,3075.5,3.2078]
[1764775491997,0.1625,3075.9,3075.5,3.2078]
[1764775492197,0.1660353,3075.9,3075.5,3.2078]
[1764775493704,3.2078,3077.5,3076.2,0.16249]
[1764775493900,4.6393,3077.9,3077.1,3.2078]
[1764775494293,1.2691,3077.2,3076.6,3.2078]
[1764775494606,2.23025397,3077.1,3076.6,3.2078]
[1764775494908,0.16245,3077.0,3076.6,3.2078]
[1764775497405,0.71838769,3076.9,3076.6,3.2078]
[1764775497797,0.71838769,3076.9,3076.5,0.00487796]
[1764775497798,3.2078,3076.7,3076.5,0.00487796]
[1764775497999,0.71838769,3076.6,3076.5,0.00487796]
[1764775498402,1.05355147,3076.6,3076.5,0.00487796]
[1764775498901,5.22815147,3076.6,3076.5,0.00487796]
[1764775499102,2.77898769,3076.6,3076.5,0.00487796]
[1764775499299,0.71838769,3076.6,3076.5,0.00487796]
[1764775499500,5.22854916,3076.6,3076.5,0.00487796]
[1764775500301,0.71838769,3076.6,3076.5,0.00487796]
[1764775500609,4.51024097,3076.6,3076.5,0.00487796]
[1764775500801,5.22862866,3076.6,3076.5,0.00487796]
[1764775501001,0.00301958,3077.1,3077.0,4.1059]
[1764775501203,3.2078,3077.8,3077.0,3.2078]
[1764775501404,0.720407,3077.7,3077.2,1.2004]
[1764775501600,3.2078,3078.2,3077.5,3.2078]
[1764775501802,0.72030591,3078.1,3077.5,3.2078]
[1764775502301,0.00247925,3078.1,3077.5,3.2078]
[1764775503105,0.00247925,3078.1,3077.9,3.2078]
[1764775503308,0.00247925,3078.1,3077.9,0.00315586]
[1764775503509,1.291,3077.9,3077.0,3.2078]
[1764775503712,0.71663016,3077.8,3077.0,3.2078]
[1764775503905,0.71663016,3077.8,3077.4,3.2078]
[1764775504107,0.00247925,3078.1,3077.4,3.2078]
[1764775504414,0.00247925,3078.1,3077.2,1.1383]
[1764775504415,3.2078,3078.8,3077.9,1.3164]
[1764775504608,0.71566046,3078.7,3078.4,3.2078]
[1764775504804,2.39262397,3078.5,3078.0,0.00487796]
[1764775505010,0.71571576,3078.4,3078.0,0.00487796]
[1764775505507,0.71946905,3078.4,3078.0,0.00716511]
[1764775505715,0.00375329,3078.4,3078.0,0.00716511]
[1764775506215,0.00375329,3078.4,3078.2,3.2078]
[1764775506513,3.2078,3079.6,3078.2,3.37018]
[1764775506713,0.7150263,3079.5,3079.0,3.2078]
[1764775506910,1.74199023,3080.2,3079.4,3.2078]
[1764775507112,0.71526976,3080.1,3079.5,0.00487796]
[1764775507409,0.00329439,3080.1,3080.0,3.2078]
[1764775508115,0.00329439,3080.1,3080.0,4.4082]
[1764775508617,0.00329439,3080.1,3080.0,3.2078]
[1764775508809,0.00329439,3080.1,3079.5,3.21267796]
[1764775510812,3.2078,3079.8,3079.5,0.00487796]
[1764775511811,0.16232,3079.5,3078.7,3.2078]
[1764775512009,3.2078,3079.1,3078.7,3.2078]
[1764775512307,0.16232,3079.5,3078.7,3.2078]
[1764775512308,3.2078,3079.2,3078.7,3.2078]
[1764775513215,3.2078,3079.2,3078.6,0.00487796]
[1764775513919,2.23025397,3078.8,3078.6,0.00487796]
[1764775514816,0.16239,3078.1,3077.2,3.2078]
[1764775515011,3.2078,3077.8,3077.2,3.2078]
[1764775515520,3.2078,3077.3,3076.6,3.2078]
[1764775515714,3.21267796,3077.3,3076.6,3.21267796]
[1764775516011,3.21636364,3077.3,3076.6,3.21559002]
[1764775518409,0.00856364,3077.3,3077.0,3.2078]
[1764775518613,0.00856364,3077.3,3076.6,3.21559002]
[1764775518815,3.21636364,3077.3,3076.6,3.21559002]
[1764775519617,0.00856364,3077.3,3077.0,3.2078]
[1764775520521,0.00856364,3077.3,3076.6,3.21559002]
[1764775522521,0.00856364,3077.3,3077.2,1.3164]
[1764775522716,3.2078,3078.1,3077.2,1.3164]
[1764775523024,3.2078,3078.1,3077.7,3.2078]
[1764775523818,0.00416019,3078.1,3077.7,3.2078]
[1764775524223,0.00416019,3078.1,3077.2,4.5242]
[1764775524426,3.21196019,3078.1,3077.2,4.5242]
[1764775524628,0.00416019,3078.1,3077.7,3.2078]
[1764775524930,2.62908024,3078.1,3077.7,3.2078]
[1764775525127,5.83688024,3078.1,3077.7,3.2078]
[1764775525323,2.62908024,3078.1,3077.7,3.2078]
[1764775526817,2.79147024,3078.1,3077.7,3.2078]
[1764775528121,2.62908024,3078.1,3077.7,3.2078]
[1764775528326,0.00416019,3078.1,3077.9,1.3164]
[1764775529032,1.291,3079.3,3077.9,1.3164]
[1764775529222,3.2078,3079.4,3078.6,3.2078]
[1764775529420,1.291,3079.3,3078.6,3.2078]
[1764775529627,3.2078,3079.4,3078.6,4.5151]
[1764775530135,3.21151439,3079.4,3079.0,3.2078]
[1764775530331,3.21151439,3079.4,3079.0,0.00333056]
[1764775530533,0.00371439,3079.4,3079.0,3.21113056]
[1764775530929,0.00371439,3079.4,3079.3,1.1979]
[1764775531128,3.37004,3081.0,3080.0,0.7902]
[1764775531329,3.2078,3081.0,3080.2,3.21266997]
[1764775532234,3.211369,3081.0,3080.2,3.21266997]
[1764775532633,0.003569,3081.0,3080.6,3.2078]
[1764775532933,0.003569,3081.0,3080.2,3.21266997]
[1764775533325,2.62492005,3080.9,3080.2,3.21266997]
[1764775533528,3.2078,3080.7,3080.2,3.21266997]
[1764775533729,2.62492005,3080.3,3080.2,0.00486997]
[1764775533944,5.83272005,3080.3,3080.2,0.00486997]
[1764775535230,5.99499005,3080.3,3079.7,3.2078]
[1764775535430,5.83272005,3080.3,3079.7,3.2078]
[1764775535632,1.1902,3080.0,3079.7,3.2078]
[1764775535833,1.1902,3080.0,3079.3,3.2078]
[1764775536237,1.19504332,3080.0,3079.3,3.21266997]
[1764775536439,1.8984638,3079.8,3079.3,3.21266997]
[1764775536934,0.1623,3079.7,3079.3,3.21266997]
[1764775537241,1.8984638,3079.8,3079.3,3.57496997]
[1764775537948,0.00484332,3080.0,3079.7,3.2078]
[1764775539240,4.332e-05,3080.0,3079.7,3.2078]
[1764775539445,1.8984638,3080.8,3079.7,3.2078]
[1764775539635,1.8984638,3080.8,3080.3,3.2078]
[1764775545333,5.6536638,3080.8,3080.7,3.2078]
[1764775545536,3.2078,3081.6,3080.7,5.1631]
[1764775545537,1.8984638,3081.3,3080.7,5.1631]
[1764775545741,1.8527,3080.8,3080.7,3.2078]
[1764775546040,5.6536638,3080.8,3080.7,3.2078]
[1764775546243,0.003569,3081.0,3080.9,3.8477]
[1764775546435,6.3972638,3082.1,3081.0,1.1369]
[1764775546636,6.3972638,3082.1,3081.6,3.2078]
[1764775546833,1.8527,3081.7,3081.6,3.2078]
[1764775547041,1.8984638,3081.7,3081.6,3.2078]
[1764775547342,1.1333,3082.8,3082.0,3.8477]
[1764775547542,1.1333,3082.8,3082.1,3.2078]
[1764775547849,1.8527,3082.2,3082.1,3.2078]
[1764775548050,5.6536638,3082.2,3082.1,3.2078]
[1764775548342,1.8984638,3082.5,3082.1,3.2078]
[1764775548549,1.13739595,3082.8,3082.1,3.2078]
[1764775548738,3.7552,3082.2,3082.1,3.2078]
[1764775548940,1.1333,3082.1,3081.6,0.00365145]
[1764775549141,3.2078,3082.2,3081.6,0.00365145]
[1764775549343,0.00409595,3082.8,3082.1,4.3447]
[1764775549545,3.2078,3083.7,3082.5,3.2078]
[1764775549742,1.8984638,3083.0,3082.5,3.2078]
[1764775549948,4.3411,3082.8,3082.1,1.1369]
[1764775550148,1.8984638,3082.4,3082.0,3.2078]
[1764775550545,3.2078,3082.3,3081.6,0.00365145]
[1764775550748,1.90090313,3082.4,3081.9,3.2078]
[1764775550949,1.90090313,3082.4,3081.6,0.00365145]
[1764775550950,1.1333,3082.1,3081.6,0.00365145]
[1764775551248,1.8984638,3081.9,3081.6,0.00365145]
[1764775551447,3.2078,3081.8,3081.6,0.00365145]
[1764775551753,1.90090313,3082.4,3081.7,3.2078]
[1764775551960,1.8984638,3081.9,3081.7,3.2078]
[1764775552848,1.8984638,3081.9,3081.6,0.00365145]
[1764775553052,3.2078,3081.8,3081.6,0.00365145]
[1764775553245,3.37,3081.8,3081.6,0.00365145]
[1764775553446,3.37,3081.8,3081.3,3.2078]
[1764775554250,6.2395638,3081.4,3081.2,0.00486997]
[1764775554455,6.2395638,3081.4,3080.5,4.911]
[1764775554456,6.4017738,3081.4,3080.5,4.911]
[1764775554656,6.4017738,3081.4,3080.8,3.2078]
[1764775554953,6.2395638,3081.4,3080.5,4.911]
[1764775555157,6.2395638,3081.4,3080.8,3.2078]
[1764775555355,1.8984638,3081.0,3080.4,3.2078]
[1764775555653,0.00486997,3081.0,3080.8,3.2078]
[1764775556358,0.00486997,3081.0,3080.9,1.9553]
[1764775557857,0.00486997,3081.0,3080.9,3.8477]
[1764775558445,3.76006997,3081.0,3080.8,3.2078]
[1764775558652,1.85756997,3081.0,3080.4,3.21672272]
[1764775559156,3.75603377,3081.0,3080.4,4.35362272]
[1764775559755,1.90333377,3081.0,3080.9,1.9553]
[1764775560054,0.00486997,3081.0,3080.9,7.0555]
[1764775560750,3.76006997,3081.0,3080.9,3.2078]
[1764775560956,0.00486997,3081.0,3080.9,7.0555]
[1764775561655,1.8527,3080.6,3080.5,3.2078]
[1764775561951,5.6536638,3080.6,3080.5,3.2078]
[1764775562152,5.6536638,3080.6,3079.3,6.6351]
[1764775562153,1.1333,3080.4,3079.9,3.2078]
[1764775562350,1.8984638,3080.1,3080.0,1.9553]
[1764775562551,1.8984638,3080.1,3080.0,3.8477]
[1764775562757,3.7552,3080.0,3079.9,3.2078]
[1764775563059,3.7552,3080.0,3079.4,3.2078]